bitfinex-derivatives/quotes_ETHF0:USTF0_20250327
["timestamp","ask_amount","ask_price","bid_price","bid_amount"]
[1743097189733,0.00488262,1998.9,1998.8,7.76958]
[1743097189734,1.33708262,1998.9,1998.8,7.76958]
[1743097189934,1.33708262,1998.9,1998.8,4.56078]
[1743097191238,0.00488262,1998.9,1998.8,7.76858]
[1743097193132,0.00488262,1998.9,1998.8,7.76258]
[1743097194839,0.00488262,1998.9,1998.8,8.42488]
[1743097195939,0.00488262,1998.9,1998.8,10.92488]
[1743097196244,3.2078,2000.2,1998.9,4.993]
[1743097196445,1.4477,1999.8,1999.7,1.00033]
[1743097196750,1.53093616,1999.8,1999.7,4.58033]
[1743097197648,0.08323616,1999.8,1999.7,7.78813]
[1743097197849,1.3543,1999.9,1999.8,1.00028]
[1743097198146,1.43749654,1999.9,1999.8,2.32868]
[1743097198546,1.4374959,1999.9,1999.8,2.32868]
[1743097201651,1.43750149,1999.9,1999.8,2.32868]
[1743097201950,0.08320149,1999.9,1999.8,2.32868]
[1743097202147,1.3577,2000.1,1999.8,1.3284]
[1743097202337,1.3577,2000.1,2000.0,1.00018]
[1743097202544,1.3577,2000.1,1999.6,3.16403389]
[1743097202545,2.50045,2000.0,1999.6,0.00751389]
[1743097202741,3.2078,1999.7,1999.3,1.00049]
[1743097202945,1.00048,1999.4,1999.3,1.00049]
[1743097203151,1.00048,1999.4,1999.2,2.50145]
[1743097203152,1.00051,1999.4,1999.2,1.3378]
[1743097203350,1.00053,1999.3,1999.2,3.617]
[1743097203543,1.00053,1999.3,1999.2,1.00058]
[1743097203750,5.70864,1999.7,1999.1,9.32336]
[1743097203945,0.00751389,1999.4,1999.3,1.00051]
[1743097204765,0.00751389,1999.4,1999.3,7.82231]
[1743097205246,0.00751389,1999.4,1999.3,12.35375475]
[1743097205647,0.00751389,1999.4,1999.3,15.65464598]
[1743097206045,0.00751389,1999.4,1999.3,13.62320123]
[1743097206242,0.00751389,1999.4,1999.3,18.14895428]
[1743097206555,0.6976,1999.9,1999.8,1.00028]
[1743097206748,0.78080795,1999.9,1999.8,7.94921593]
[1743097206947,0.78080795,1999.9,1999.8,9.81493706]
[1743097207243,1.78103795,1999.9,1999.8,9.83229117]
[1743097207653,1.78103795,1999.9,1999.8,6.47300113]
[1743097207949,0.78080795,1999.9,1999.8,9.82960457]
[1743097208152,0.78080795,1999.9,1999.8,8.68146849]
[1743097208346,1.78103795,1999.9,1999.8,8.68146849]
[1743097208651,1.78103795,1999.9,1999.8,2.94500558]
[1743097208844,4.98883795,1999.9,1999.8,2.18552282]
[1743097209556,4.98883795,1999.9,1999.8,0.5643291]
[1743097211153,1.00028,1999.8,1999.7,1.00029]
[1743097211458,1.08347851,1999.8,1999.7,2.46674106]
[1743097211759,1.08347851,1999.8,1999.7,1.56434964]
[1743097212157,1.08347851,1999.8,1999.7,2.46675632]
[1743097212457,1.08347851,1999.8,1999.2,1.00051]
[1743097212458,1.00056,1999.3,1999.2,1.00051]
[1743097212760,1.00052,1999.4,1999.3,1.00047]
[1743097212961,1.08370269,1999.4,1999.3,1.00047]
[1743097213257,1.08370269,1999.4,1999.3,1.90319233]
[1743097213659,1.08370269,1999.4,1999.3,0.90272233]
[1743097213861,1.00058,1999.2,1999.1,0.00751389]
[1743097214051,0.08318269,1999.2,1999.1,0.00751389]
[1743097214357,1.08376269,1999.2,1999.1,1.72392778]
[1743097214669,1.08376269,1999.2,1999.1,1.00811389]
[1743097214962,1.08376269,1999.2,1999.1,0.00751389]
[1743097215153,4.29156269,1999.2,1999.1,0.00751389]
[1743097216260,4.29157217,1999.2,1999.1,0.00751389]
[1743097217059,4.98917217,1999.2,1999.1,0.00751389]
[1743097217853,4.98918744,1999.2,1999.1,0.00751389]
[1743097221058,4.9891864,1999.2,1999.1,0.00751389]
[1743097221963,6.2923864,1999.2,1999.1,0.00751389]
[1743097222566,6.29241978,1999.2,1999.1,0.00751389]
[1743097223567,6.29241978,1999.2,1999.1,1.00814389]
[1743097224060,4.511,1999.2,1999.1,1.00814389]
[1743097224366,1.38644026,1999.2,1999.1,1.00814389]
[1743097224562,1.00051,1999.4,1999.3,1.00053]
[1743097224760,4.20827,1999.5,1999.4,1.00048]
[1743097224958,4.29152718,1999.5,1999.4,1.00048]
[1743097225165,0.08325718,1999.5,1999.4,1.54821928]
[1743097225464,0.08325718,1999.5,1999.4,1.00048]
[1743097225465,1.08368718,1999.5,1999.4,1.00048]
[1743097225666,0.08325718,1999.5,1999.4,1.00048]
[1743097225867,1.50635718,1999.5,1999.4,2.38918]
[1743097226069,2.50678718,1999.5,1999.4,2.38918]
[1743097227264,1.50635525,1999.5,1999.4,2.38918]
[1743097227466,2.50678525,1999.5,1999.4,2.38918]
[1743097227863,1.50635525,1999.5,1999.4,2.38918]
[1743097228265,2.50678525,1999.5,1999.4,2.38918]
[1743097228664,1.50635525,1999.5,1999.4,2.38918]
[1743097229071,1.50635525,1999.5,1999.4,3.04198]
[1743097229370,0.08325525,1999.5,1999.4,3.04198]
[1743097229565,4.20813,1999.7,1999.4,2.0415]
[1743097229870,0.08327581,1999.6,1999.5,1.00043]
[1743097230373,1.00033,1999.7,1999.6,1.00038]
[1743097230575,2.42900187,1999.7,1999.6,4.54438]
[1743097230966,1.42867187,1999.7,1999.6,4.54438]
[1743097231465,1.42867252,1999.7,1999.6,4.54438]
[1743097231667,2.42900252,1999.7,1999.6,1.21412424]
[1743097231976,1.08360252,1999.7,1999.6,2.21450424]
[1743097232167,0.08327252,1999.7,1999.6,2.21450424]
[1743097233570,0.08327252,1999.7,1999.6,2.91510424]
[1743097234274,1.3895,2000.0,1999.8,1.00028]
[1743097234470,24.40133141,2000.2,1999.9,4.2422]
[1743097234774,0.08329162,2000.1,2000.0,4.52918]
[1743097235673,0.08329162,2000.1,2000.0,1.00018]
[1743097235875,2.47291162,2000.1,2000.0,3.528]
[1743097236073,1.47279162,2000.1,2000.0,4.52818]
[1743097236469,0.08329162,2000.1,2000.0,1.00018]
[1743097236667,0.08329162,2000.2,2000.1,1.00012]
[1743097236874,0.08328515,2000.2,2000.1,1.00011]
[1743097237076,1.41798515,2000.2,2000.1,1.00011]
[1743097237776,2.41805515,2000.2,2000.1,1.00012]
[1743097238174,1.41798515,2000.2,1999.9,6.73975]
[1743097238371,1.3347,2000.2,2000.1,1.00012]
[1743097238572,1.41798624,2000.2,2000.1,1.00012]
[1743097238873,1.00014,2000.1,2000.0,1.00018]
[1743097239068,1.08342624,2000.1,2000.0,4.51718]
[1743097239776,1.08342624,2000.1,2000.0,3.517]
[1743097240074,3.29108323,2000.1,2000.0,3.513]
[1743097240274,4.29120323,2000.1,2000.0,1.00018]
[1743097240476,1.0002,2000.0,1999.9,1.00021]
[1743097240680,2.41648323,2000.0,1999.9,4.51521]
[1743097240886,1.41628323,2000.0,1999.9,4.51521]
[1743097242678,1.333,2000.0,1999.9,4.51521]
[1743097243075,2.33318,2000.0,1999.9,4.51521]
[1743097243276,1.333,2000.0,1999.9,4.51521]
[1743097243769,2.33318,2000.0,1999.9,4.51521]
[1743097243974,1.333,2000.0,1999.9,4.51521]
[1743097244694,25.68059098,2000.1,2000.0,1.00018]
[1743097244875,25.68059098,2000.1,2000.0,2.38988]
[1743097245076,24.68045098,2000.1,2000.0,2.38988]
[1743097245479,25.68057098,2000.1,2000.0,2.38988]
[1743097245682,27.08997098,2000.1,2000.0,2.38988]
[1743097246075,1.00025,1999.9,1999.7,0.7057]
[1743097246280,3.2078,1999.9,1999.8,6.52256167]
[1743097247481,3.2078,1999.9,1999.8,6.5225702]
[1743097248684,3.2078,1999.9,1999.8,2.27266264]
[1743097248987,3.2078,1999.9,1999.8,3.27293264]
[1743097249590,4.5341,1999.9,1999.8,3.27296355]
[1743097251183,4.5341,1999.9,1999.8,5.06990111]
[1743097251390,4.5341,1999.9,1999.8,5.0699276]
[1743097252083,4.5341,1999.9,1999.8,6.5114276]
[1743097254287,4.5341,1999.9,1999.8,7.48042221]
[1743097254794,5.53433,1999.9,1999.8,1.55065221]
[1743097255088,1.00046,1999.5,1999.2,2.50142]
[1743097255393,5.59008,1999.4,1999.3,2.91937079]
[1743097255595,5.59008,1999.4,1999.1,0.00751389]
[1743097255596,1.00058,1999.2,1999.1,0.00751389]
[1743097255794,4.20838,1999.2,1999.1,2.16302228]
[1743097256096,4.20838,1999.2,1999.1,3.16365228]
[1743097256391,5.59018,1999.2,1999.1,1.96614762]
[1743097256690,5.59018,1999.2,1999.1,1.70483789]
[1743097256994,5.59018,1999.2,1999.1,0.74683416]
[1743097257494,1.00073,1998.9,1998.8,1.00074]
[1743097257687,4.20853,1998.9,1998.8,2.92855291]
[1743097258383,3.2078,1998.9,1998.8,2.92855291]
[1743097258996,4.5995,1998.9,1998.8,2.92855291]
[1743097259296,5.60023,1998.9,1998.8,2.92855291]
[1743097259495,4.5995,1998.9,1998.8,1.77506166]
[1743097259708,5.60023,1998.9,1998.8,1.77506166]
[1743097259887,4.5995,1998.9,1998.8,1.77506166]
[1743097260395,5.60023,1998.9,1998.8,0.77432166]
[1743097260696,5.60023,1998.9,1998.8,1.77478075]
[1743097260997,5.60023,1998.9,1998.8,0.77400075]
[1743097261197,5.60023,1998.9,1998.8,1.77478075]
[1743097261398,5.60023,1998.9,1998.8,0.77400075]
[1743097261698,5.60023,1998.9,1998.8,1.00078]
[1743097261892,1.00078,1998.8,1998.7,0.00751389]
[1743097262093,3.04798,1998.8,1998.7,0.78124491]
[1743097262393,3.04798,1998.8,1998.7,0.00751389]
[1743097264194,2.0472,1998.8,1998.7,0.00751389]
[1743097264399,1.3314,1998.8,1998.7,1.00834389]
[1743097264891,0.00751389,1999.0,1998.9,1.00073]
[1743097265091,1.39921389,1999.0,1998.9,1.00073]
[1743097265296,2.39989389,1999.0,1998.9,25.30453]
[1743097265497,2.39989389,1999.0,1998.9,23.90073]
[1743097266089,2.39989389,1999.0,1998.9,1.00073]
[1743097266585,2.39989389,1999.0,1998.9,23.90073]
[1743097266791,1.39921389,1999.0,1998.9,1.00073]
[1743097266990,2.39989389,1999.0,1998.9,1.57579186]
[1743097267295,1.39921389,1999.0,1998.9,1.57579186]
[1743097267492,0.00751389,1999.0,1998.9,26.83705988]
[1743097267893,0.00751389,1999.0,1998.9,27.609618]
[1743097268201,1.37831389,1999.0,1998.9,26.83705988]
[1743097268404,1.37831389,1999.0,1998.9,30.31105988]
[1743097268699,2.37899389,1999.0,1998.9,5.96985988]
[1743097268892,2.37899389,1999.0,1998.9,5.04979186]
[1743097269094,1.37831389,1999.0,1998.9,5.04979186]
[1743097269493,1.37831389,1999.0,1998.9,4.47473]
[1743097269695,1.37831389,1999.0,1998.9,5.04983251]
[1743097269897,1.37831389,1999.0,1998.9,7.41119583]
[1743097270403,0.00751389,1999.0,1998.9,7.41119583]
[1743097270790,0.00751389,1999.0,1998.9,8.14289477]
[1743097271487,1.43571389,1999.0,1998.9,8.14314835]
[1743097273304,1.43571389,1999.0,1998.9,6.64762894]
[1743097273503,1.43571389,1999.0,1998.9,8.14344269]
[1743097275198,1.43571389,1999.0,1998.9,6.64762894]
[1743097275399,1.43571389,1999.0,1998.9,8.14373885]
[1743097276389,0.00751389,1999.0,1998.9,8.91702085]
[1743097276594,0.00751389,1999.0,1998.9,7.45582085]
[1743097277000,1.35241389,1999.0,1998.9,8.88912085]
[1743097277192,1.35241389,1999.0,1998.9,8.88949885]
[1743097279008,1.35241389,1999.0,1998.9,8.89013619]
[1743097279408,0.6921,1999.4,1998.9,8.89013619]
[1743097279409,4.5527,1999.3,1999.2,1.00058]
[1743097279610,4.5527,1999.3,1999.2,25.39770608]
[1743097279808,3.2078,1999.6,1999.3,3.50185]
[1743097280109,3.2078,1999.6,1999.5,1.00043]
[1743097280301,3.2078,1999.6,1999.5,5.02224772]
[1743097280497,3.2078,1999.6,1999.5,7.34353692]
[1743097280812,1.3527,1999.8,1999.7,1.00033]
[1743097281007,1.3527,1999.8,1999.7,1.6001323]
[1743097281315,24.68045098,2000.1,1999.8,1.00028]
[1743097281502,24.68045098,2000.1,2000.0,1.00018]
[1743097281807,24.68045098,2000.1,2000.0,7.97695056]
[1743097282217,24.68045098,2000.1,2000.0,7.69488577]
[1743097282515,24.68045098,2000.1,2000.0,9.88149273]
[1743097282708,24.68045098,2000.1,2000.0,12.70935869]
[1743097282709,25.99425098,2000.1,2000.0,12.70935869]
[1743097283305,18.62224848,2000.1,2000.0,15.67626645]
[1743097283712,1.3138,2000.4,2000.3,1.00002]
[1743097284010,1.3138,2000.4,2000.3,14.78641331]
[1743097284209,1.3138,2000.4,2000.3,11.19030193]
[1743097284410,1.3138,2000.4,2000.3,15.48205495]
[1743097285207,4.5801,2000.7,2000.6,0.99988]
[1743097285413,4.5801,2000.7,2000.6,2.55275074]
[1743097285715,5.57993,2000.7,2000.6,2.55275074]
[1743097286009,6.88443,2000.7,2000.6,1.7324091]
[1743097286409,5.8846,2000.7,2000.6,0.99988]
[1743097287606,5.8846,2000.7,2000.6,4.43788]
[1743097289014,4.5123,2000.7,2000.6,4.43788]
[1743097290814,5.51213,2000.7,2000.6,4.42988]
[1743097291211,7.01191,2000.7,2000.1,5.00045]
[1743097291514,3.2078,2000.4,2000.3,1.00002]
[1743097291910,4.6018,2000.4,2000.3,1.00002]
[1743097292510,4.6018,2000.4,2000.3,4.42902]
[1743097293615,3.2078,2000.4,2000.3,4.42902]
[1743097294708,1.394,2000.6,2000.5,0.99993]
[1743097294923,1.3341,2000.8,2000.7,0.99983]
[1743097295115,1.3341,2000.8,2000.7,4.43983]
[1743097295811,1.3341,2000.8,2000.7,5.77173]
[1743097296217,1.3341,2000.8,2000.7,6.44703]
[1743097296721,3.2078,2001.0,2000.9,0.99973]
[1743097297421,4.5419,2001.0,2000.9,0.99973]
[1743097297611,4.62525154,2001.0,2000.9,0.99973]
[1743097297912,4.5419,2001.0,2000.9,0.99973]
[1743097298513,4.62526912,2001.0,2000.9,0.99973]
[1743097298913,4.5419,2001.0,2000.9,0.99973]
[1743097299318,4.62526452,2001.0,2000.9,0.99973]
[1743097300325,4.5419,2001.0,2000.9,0.99973]
[1743097300619,4.6252766,2001.0,2000.9,0.99973]
[1743097301122,1.3341,2001.0,2000.9,0.99973]
[1743097301320,4.6116,2001.3,2001.2,0.99958]
[1743097301516,4.69498343,2001.3,2001.2,4.42558]
[1743097302409,5.69451343,2001.3,2001.2,3.424]
[1743097302621,4.69498343,2001.3,2001.2,4.42358]
[1743097303016,6.01658343,2001.3,2001.2,4.42358]
[1743097303722,6.01659173,2001.3,2001.2,4.42358]
[1743097304525,7.01612173,2001.3,2001.2,4.42358]
[1743097304715,6.93273,2001.3,2001.2,4.42358]
[1743097305926,4.5294,2001.3,2001.2,4.42358]
[1743097306336,4.5946,2001.6,2001.5,0.99943]
[1743097306513,3.2078,2001.6,2001.5,4.42943]
[1743097306920,3.29117857,2001.6,2001.5,4.42943]
[1743097307224,3.29117857,2001.6,2001.5,5.76663]
[1743097307225,3.29120425,2001.6,2001.5,5.76663]
[1743097307425,3.29120425,2001.6,2001.5,6.44733]
[1743097307718,3.2078,2001.6,2001.5,6.44733]
[1743097307927,3.29121194,2001.6,2001.5,6.44733]
[1743097308227,3.29121194,2001.6,2001.5,5.10813]
[1743097308621,3.29120954,2001.6,2001.5,5.10813]
[1743097308823,3.29120954,2001.6,2001.5,6.44533]
[1743097310025,3.29120954,2001.6,2001.5,6.44133]
[1743097310621,4.6135,2001.9,2001.8,0.99928]
[1743097310825,4.69691513,2001.9,2001.8,4.42128]
[1743097311826,5.69614513,2001.9,2001.8,4.42128]
[1743097312233,4.69691513,2001.9,2001.8,4.42128]
[1743097312621,5.69614513,2001.9,2001.8,0.99928]
[1743097312827,5.69615513,2001.9,2001.8,3.417]
[1743097313227,5.69615513,2001.9,2001.8,4.41628]
[1743097313732,5.69613007,2001.9,2001.8,4.41628]
[1743097314429,5.69613007,2001.9,2001.8,0.99928]
[1743097314734,4.69689007,2001.9,2001.7,3.413]
[1743097314925,4.69689007,2001.9,2001.7,4.41228]
[1743097314926,1.08267007,2001.8,2001.7,4.41228]
[1743097315430,0.08339007,2001.8,2001.7,4.41228]
[1743097316828,1.08267007,2001.8,2001.7,4.40628]
[1743097317524,1.08267007,2001.8,2001.7,0.99928]
[1743097317724,0.99933,2001.7,2001.6,4.40334]
[1743097317926,1.08272007,2001.7,2001.6,4.40334]
[1743097318126,0.9994,2001.6,2001.5,4.40638]
[1743097318324,4.2072,2001.6,2001.5,4.40638]
[1743097318531,3.2078,2001.6,2001.5,4.40638]
[1743097318720,4.29052663,2001.6,2001.5,4.40638]
[1743097318919,3.29114663,2001.6,2001.5,4.40638]
[1743097319124,15.44010029,2034.8,2001.9,0.99918]
[1743097319125,3.2078,2002.0,2001.9,0.99918]
[1743097319324,4.20701,2002.0,2001.9,0.99918]
[1743097320129,4.28970837,2002.0,2001.9,0.99918]
[1743097320932,4.99330837,2002.0,2001.9,0.99918]
[1743097321933,6.34290837,2002.0,2001.9,0.99918]
[1743097322726,0.99933,2001.8,2001.7,0.99929]
[1743097322931,1.08202837,2001.8,2001.7,4.40129]
[1743097323421,1.08202837,2001.8,2001.7,0.99929]
[1743097323734,1.08202837,2001.8,2001.7,4.40129]
[1743097324530,1.08202837,2001.8,2001.6,2.36417]
[1743097324531,0.99933,2001.7,2001.6,2.36417]
[1743097324839,0.99947,2001.5,2001.4,3.399]
[1743097325131,1.08217417,2001.5,2001.4,4.39848]
[1743097325336,0.08270417,2001.5,2001.4,4.39848]
[1743097325535,2.49163417,2001.5,2001.4,4.39848]
[1743097325931,2.40893,2001.5,2001.4,4.39848]
[1743097326236,0.08273037,2001.5,2001.4,12.61476694]
[1743097326440,0.08273037,2001.5,2001.4,10.86529139]
[1743097326634,2.34379,2001.6,2001.5,0.99943]
[1743097326939,2.34379,2001.6,2001.5,7.24347303]
[1743097327241,1.21914444,2001.6,2001.5,7.24347303]
[1743097327539,1.30187381,2001.6,2001.5,10.05942914]
[1743097327836,1.21914444,2001.6,2001.5,8.4973974]
[1743097328337,1.21914444,2001.6,2001.5,8.47538106]
[1743097328839,1.21914444,2001.6,2001.5,3.59261775]
[1743097329042,1.21914444,2001.6,2001.5,2.03061003]
[1743097329536,0.99963,2001.1,2001.0,1.00715389]
[1743097329732,0.99963,2001.1,2001.0,5.77155389]
[1743097330032,0.99963,2001.2,2001.1,0.99958]
[1743097330938,0.99963,2001.2,2001.1,2.37398]
[1743097331247,0.99963,2001.1,2001.0,3.39751389]
[1743097331433,0.99963,2001.1,2001.0,4.39719389]
[1743097331634,0.99963,2001.1,2001.0,0.00751389]
[1743097333839,0.21975444,2001.6,2001.2,0.99958]
[1743097334039,5.952,2001.9,2001.6,0.99936]
[1743097334040,0.99938,2001.7,2001.6,0.99936]
[1743097334242,6.36649,2001.9,2001.5,0.99938]
[1743097334541,6.36649,2001.9,2001.3,2.41521]
[1743097334542,0.99948,2001.4,2001.3,2.41521]
[1743097334932,0.99948,2001.4,2001.3,2.41519]
[1743097335143,0.99944,2001.5,2001.4,0.99943]
[1743097335338,0.99943,2001.5,2001.4,0.99947]
[1743097335541,0.99948,2001.4,2001.3,3.72831]
[1743097335737,0.99946,2001.5,2001.4,0.99946]
[1743097335932,0.99946,2001.5,2001.4,0.99944]
[1743097336133,3.2078,2001.6,2001.3,2.7288]
[1743097336329,0.99946,2001.5,2001.4,0.99944]
[1743097337338,0.99948,2001.4,2001.3,3.72829]
[1743097337542,1.08221048,2001.4,2001.3,3.72829]
[1743097338045,0.99956,2001.3,2001.2,0.99954]
[1743097338244,0.99952,2001.4,2001.3,0.99953]
[1743097338434,1.08225574,2001.4,2001.3,0.99953]
[1743097338631,1.08226506,2001.4,2001.3,0.99953]
[1743097339438,0.08274506,2001.4,2001.3,0.99953]
[1743097339940,3.2078,2001.6,2001.5,0.99943]
[1743097340140,3.2078,2001.9,2001.6,0.99938]
[1743097340342,3.2078,2001.9,2001.8,0.99928]
[1743097340532,4.28981312,2001.9,2001.8,0.99928]
[1743097341142,3.29058312,2001.9,2001.8,2.42748]
[1743097341537,0.08278312,2001.9,2001.8,5.83448]
[1743097341739,0.08278312,2002.0,2001.9,0.99923]
[1743097341942,1.45008952,2002.0,2001.9,1.69103]
[1743097342139,2.44926952,2002.0,2001.9,1.69103]
[1743097342846,0.99928,2001.8,2001.7,0.99928]
[1743097343044,1.08206952,2001.8,2001.7,0.99928]
[1743097343439,2.42127879,2001.8,2001.7,0.99928]
[1743097343843,2.42127879,2001.8,2001.7,5.65346033]
[1743097344348,2.42127879,2001.8,2001.7,7.89466704]
[1743097344544,2.42127879,2001.8,2001.7,5.3770493]
[1743097344847,2.42127879,2001.8,2001.7,1.97383906]
[1743097345141,0.99933,2001.7,2001.6,0.99935]
[1743097345347,0.99938,2001.6,2001.5,1.6695]
[1743097345542,1.08217879,2001.6,2001.5,1.6695]
[1743097346947,4.28997879,2001.6,2001.5,0.6701]
[1743097347549,0.99943,2001.5,2001.4,1.69124]
[1743097347745,2.48672879,2001.5,2001.4,0.6918]
[1743097347952,2.48672879,2001.5,2001.4,1.69128]
[1743097348547,2.48672879,2001.5,2001.4,0.6918]
[1743097348750,2.48672879,2001.5,2001.3,0.99949]
[1743097348751,0.99948,2001.4,2001.3,0.99949]
[1743097348951,2.48677879,2001.4,2001.3,0.99949]
[1743097349765,1.48729879,2001.4,2001.3,0.99949]
[1743097350562,2.48677879,2001.4,2001.3,0.99949]
[1743097352062,0.99953,2001.3,2001.2,5.09204]
[1743097352270,2.48822879,2001.3,2001.2,5.09204]
[1743097352465,0.99958,2001.2,2001.1,1.69319]
[1743097352766,2.41218,2001.2,2001.1,1.69319]
[1743097352967,2.49492265,2001.2,2001.1,1.69319]
[1743097353864,2.49492265,2001.2,2001.1,1.69323]
[1743097354362,2.41218,2001.2,2001.1,1.69323]
[1743097354559,2.4949181,2001.2,2001.1,1.69323]
[1743097356067,2.43043,2001.3,2001.2,0.99958]
[1743097356262,0.08273476,2001.3,2001.2,0.99958]
[1743097356455,2.51307922,2001.5,2001.4,0.99948]
[1743097356656,2.51308086,2001.5,2001.4,0.99948]
[1743097356870,1.51364086,2001.5,2001.4,0.99948]
[1743097357055,1.4309,2001.5,2001.4,0.99948]
[1743097357258,4.2072,2001.6,2001.5,0.99943]
[1743097357861,4.28988222,2001.6,2001.5,0.99943]
[1743097358171,3.29048222,2001.6,2001.5,0.99943]
[1743097359170,0.08268222,2001.6,2001.5,0.99943]
[1743097359469,2.43024,2001.7,2001.6,0.99938]
[1743097359663,2.43024,2001.7,2001.6,7.14712696]
[1743097359860,2.43023,2001.7,2001.6,7.14712696]
[1743097360269,2.43023,2001.7,2001.6,10.55079449]
[1743097360570,2.43023,2001.7,2001.6,9.00372255]
[1743097361369,2.43023,2001.7,2001.6,8.99822863]
[1743097361770,2.43023,2001.7,2001.6,7.51837318]
[1743097361971,2.43023,2001.7,2001.6,8.85227318]
[1743097362160,2.43023,2001.7,2001.6,7.61608828]
[1743097362356,2.43023,2001.7,2001.6,6.49157496]
[1743097362557,1.4309,2001.7,2001.6,6.49157496]
[1743097362963,1.4309,2001.7,2001.6,5.92698287]
[1743097363167,1.4309,2001.7,2001.6,6.48845428]
[1743097363368,1.4309,2001.7,2001.6,5.71691775]
[1743097363571,1.4309,2001.7,2001.6,4.53303339]
[1743097363772,1.4309,2001.7,2001.6,5.28748378]
[1743097364071,1.4309,2001.7,2001.6,6.409895]
[1743097364474,1.4309,2001.7,2001.6,5.28748378]
[1743097364967,1.4309,2001.7,2001.6,4.5315257]
[1743097365175,2.43023,2001.7,2001.6,2.4804224]
[1743097365476,2.43023,2001.7,2001.6,2.30019925]
[1743097365966,2.43023,2001.7,2001.6,1.56027153]
[1743097366567,2.43023,2001.7,2001.6,1.4179]
[1743097366871,3.92926,2001.7,2001.3,1.651]
[1743097367067,0.99948,2001.4,2001.3,1.651]
[1743097367372,0.99948,2001.4,2001.3,2.21164303]
[1743097367670,0.99948,2001.4,2001.3,2.94852748]
[1743097367865,0.99948,2001.4,2001.3,1.94902748]
[1743097368065,0.99948,2001.4,2001.3,2.94855748]
[1743097368569,0.99953,2001.3,2001.2,2.41744]
[1743097368774,0.99953,2001.3,2001.2,3.87505442]
[1743097370374,4.20733,2001.3,2001.2,2.87551442]
[1743097370575,4.20733,2001.3,2001.2,0.56062093]
[1743097372368,4.20733,2001.3,2001.2,1.56020093]
[1743097374076,4.20733,2001.3,2001.2,2.23520093]
[1743097374377,4.20733,2001.3,2001.2,3.13214611]
[1743097374567,4.20733,2001.3,2001.2,2.23520093]
[1743097374766,4.20733,2001.3,2001.2,3.13243153]
[1743097375270,4.20733,2001.3,2001.2,2.23520093]
[1743097375967,4.20733,2001.3,2001.2,3.13246637]
[1743097376277,4.20733,2001.3,2001.2,3.13266021]
[1743097377072,4.20733,2001.3,2001.2,1.45808021]
[1743097377376,4.20733,2001.3,2001.2,0.56079428]
[1743097377572,0.99963,2001.1,2001.0,3.06314389]
[1743097377778,0.99963,2001.1,2001.0,4.52155932]
[1743097378078,0.99963,2001.1,2001.0,3.52192932]
[1743097378573,0.99963,2001.1,2001.0,4.52160932]
[1743097379771,0.99963,2001.1,2001.0,4.52221896]
[1743097379974,0.99963,2001.1,2001.0,4.52221491]
[1743097380173,0.99963,2001.1,2001.0,3.52253491]
[1743097380365,0.99963,2001.1,2001.0,1.46653491]
[1743097380572,1.68183,2001.1,2001.0,1.56835582]
[1743097380782,1.68183,2001.1,2001.0,2.90115582]
[1743097381167,0.99963,2001.1,2001.0,3.79909265]
[1743097381372,0.99963,2001.1,2001.0,3.79915708]
[1743097383073,0.99963,2001.1,2001.0,3.79997475]
[1743097383275,0.99963,2001.1,2001.0,2.80029475]
[1743097383476,0.99963,2001.1,2001.0,2.17238469]
[1743097383672,1.68023,2001.1,2001.0,2.17238469]
[1743097383871,1.68023,2001.1,2001.0,1.27393493]
[1743097384080,1.68023,2001.1,2001.0,0.56904499]
[1743097384884,1.68023,2001.1,2001.0,0.56960637]
[1743097386784,1.68023,2001.1,2001.0,1.47023243]
[1743097387680,0.99963,2001.1,2001.0,1.47023243]
[1743097387984,2.39281,2001.2,2001.1,0.99963]
[1743097388187,2.39281,2001.2,2001.1,3.58782027]
[1743097388485,2.39278,2001.2,2001.1,6.34937658]
[1743097388685,2.39278,2001.2,2001.1,7.07259015]
[1743097388889,2.39278,2001.2,2001.1,8.20305719]
[1743097389082,1.3932,2001.2,2001.1,8.20305719]
[1743097389386,3.2078,2001.3,2001.2,0.99958]
[1743097389680,3.2078,2001.3,2001.2,5.62725316]
[1743097390274,3.2078,2001.3,2001.2,2.31558]
[1743097390475,3.2078,2001.3,2001.2,9.24298775]
[1743097390977,3.2078,2001.3,2001.2,8.62064577]
[1743097391185,3.2078,2001.3,2001.2,8.6211261]
[1743097391683,4.20733,2001.3,2001.2,12.5846093]
[1743097391884,5.63313,2001.3,2001.2,11.42899321]
[1743097392486,4.6336,2001.3,2001.2,12.58528938]
[1743097392781,3.2078,2001.3,2001.2,12.58528938]
[1743097392990,3.2078,2001.3,2001.2,11.96280618]
[1743097393781,3.2078,2001.3,2001.2,12.73837468]
[1743097394688,3.2078,2001.3,2001.2,11.96280618]
[1743097394885,0.99951,2001.4,2001.3,0.99953]
[1743097395084,0.99951,2001.4,2001.3,7.44858847]
[1743097395387,0.99951,2001.4,2001.3,6.2922923]
[1743097395686,0.99951,2001.4,2001.3,9.28604025]
[1743097395881,0.99951,2001.4,2001.3,9.28924816]
[1743097397888,0.99951,2001.4,2001.3,9.28987067]
[1743097398080,0.99951,2001.4,2001.3,6.93354067]
[1743097398276,1.68241,2001.4,2001.3,4.43041644]
[1743097398476,1.68241,2001.4,2001.3,3.30276727]
[1743097398675,3.05191,2001.4,2001.3,3.30276727]
[1743097399081,3.05191,2001.4,2001.3,1.46594392]
[1743097399493,5.55191,2001.4,2001.3,1.46594392]
[1743097399786,4.5512,2001.4,2001.0,2.29926488]
[1743097399989,0.99958,2001.2,2001.1,5.73085257]
[1743097400290,4.20738,2001.2,2001.1,7.5709803]
[1743097400491,4.20738,2001.2,2001.1,6.5713503]
[1743097400793,4.20738,2001.2,2001.1,7.5709803]
[1743097400991,4.20738,2001.2,2001.1,8.2253803]
[1743097401392,4.20738,2001.2,2001.1,7.0976726]
[1743097401795,4.20738,2001.2,2001.1,7.07093898]
[1743097402096,4.20738,2001.2,2001.1,6.07130898]
[1743097402288,4.20738,2001.2,2001.1,7.07093898]
[1743097403587,4.20738,2001.2,2001.1,6.07133242]
[1743097403889,4.20738,2001.2,2001.1,4.00264409]
[1743097404092,4.20738,2001.2,2001.1,2.14708083]
[1743097405391,4.20738,2001.2,2001.1,0.70774143]